[Event "*** Titled Tuesday Blitz"]
[Site "Chess.com"]
[Date "2019.12.03"]
[Round "5"]
[White "Eltaj_Safarli"]
[Black "bascheyaro"]
[Result "1-0"]
[WhiteElo "2991"]
[BlackElo "2763"]
[TimeControl "180+2"]
[EndTime "14:02:35 PST"]
[Termination "Eltaj_Safarli won by resignation"]

1. e4 {[%clk 0:03:01.9]} 1... e6 {[%clk 0:03:01.1]} 2. Qe2 {[%clk 0:03:02.5]}
2... d5 {[%clk 0:03:03]} 3. exd5 {[%clk 0:03:02]} 3... Qxd5 {[%clk 0:03:04.9]}
4. Nc3 {[%clk 0:03:02.3]} 4... Qd8 {[%clk 0:03:06.5]} 5. g4 {[%clk 0:03:02]}
5... Nf6 {[%clk 0:03:08.4]} 6. Bg2 {[%clk 0:03:01.8]} 6... c6 {[%clk 0:02:59.6]}
7. g5 {[%clk 0:03:00.7]} 7... Nd5 {[%clk 0:03:00.7]} 8. d4 {[%clk 0:03:01.3]}
8... Qa5 {[%clk 0:02:50.7]} 9. Bd2 {[%clk 0:03:00.2]} 9... Nxc3 {[%clk
0:02:46.1]} 10. bxc3 {[%clk 0:03:00.8]} 10... Nd7 {[%clk 0:02:47]} 11. h4 {[%clk
0:02:59.2]} 11... Nb6 {[%clk 0:02:46.7]} 12. Nf3 {[%clk 0:02:59]} 12... Qa4
{[%clk 0:02:42.8]} 13. Ne5 {[%clk 0:02:58.9]} 13... Bd6 {[%clk 0:02:32.7]} 14.
f4 {[%clk 0:02:56.8]} 14... Qxc2 {[%clk 0:02:25.1]} 15. O-O {[%clk 0:02:54.1]}
15... g6 {[%clk 0:02:19.1]} 16. Ng4 {[%clk 0:02:47.8]} 16... h5 {[%clk
0:02:09.1]} 17. Nf6+ {[%clk 0:02:47.6]} 17... Kf8 {[%clk 0:02:10.4]} 18. f5
{[%clk 0:02:43.7]} 18... exf5 {[%clk 0:02:05.8]} 19. Rae1 {[%clk 0:02:40.5]}
19... Be6 {[%clk 0:02:01]} 20. Bf4 {[%clk 0:02:39]} 20... Qxe2 {[%clk
0:01:48.1]} 21. Bxd6+ {[%clk 0:02:38.5]} 21... Kg7 {[%clk 0:01:49.5]} 22. Rxe2
{[%clk 0:02:37.7]} 22... Bc4 {[%clk 0:01:51.1]} 23. Re7 {[%clk 0:02:21.1]} 23...
Nc8 {[%clk 0:01:45]} 24. Ne8+ {[%clk 0:02:10.1]} 24... Kf8 {[%clk 0:01:42]} 25.
Rxb7+ {[%clk 0:02:06.7]} 25... Nxd6 {[%clk 0:01:20]} 26. Nxd6 {[%clk 0:02:08.6]}
26... Bxf1 {[%clk 0:01:20.4]} 27. Kxf1 {[%clk 0:02:03.5]} 27... Rh7 {[%clk
0:01:20.5]} 28. Bxc6 {[%clk 0:01:59.2]} 28... Rd8 {[%clk 0:01:21.4]} 29. Nc4
{[%clk 0:01:57]} 29... Kg8 {[%clk 0:01:15.6]} 30. Ne5 {[%clk 0:01:57.2]} 30...
Rf8 {[%clk 0:01:12.9]} 31. Bd5 {[%clk 0:01:57.7]} 1-0

[Event "*** Titled Tuesday Blitz"]
[Site "Chess.com"]
[Date "2019.12.03"]
[Round "5"]
[White "Laico"]
[Black "Frolik67"]
[Result "0-1"]
[WhiteElo "2335"]
[BlackElo "2547"]
[TimeControl "180+2"]
[EndTime "14:03:04 PST"]
[Termination "Frolik67 won by resignation"]

1. e4 {[%clk 0:03:01.9]} 1... e6 {[%clk 0:02:59.6]} 2. d4 {[%clk 0:03:02.2]}
2... d5 {[%clk 0:02:58.7]} 3. Nd2 {[%clk 0:03:03.6]} 3... Nf6 {[%clk 0:02:58.3]}
4. e5 {[%clk 0:03:04]} 4... Nfd7 {[%clk 0:02:59.7]} 5. Bd3 {[%clk 0:03:05.6]}
5... c5 {[%clk 0:03:01]} 6. c3 {[%clk 0:03:07.2]} 6... Nc6 {[%clk 0:03:01.6]} 7.
Ne2 {[%clk 0:03:08]} 7... cxd4 {[%clk 0:03:03.2]} 8. cxd4 {[%clk 0:03:09.9]}
8... f6 {[%clk 0:03:04.9]} 9. exf6 {[%clk 0:03:11.6]} 9... Nxf6 {[%clk
0:03:06.8]} 10. Nf3 {[%clk 0:03:11.9]} 10... Bd6 {[%clk 0:03:08.7]} 11. Bf4
{[%clk 0:03:11.8]} 11... Bxf4 {[%clk 0:02:55.5]} 12. Nxf4 {[%clk 0:03:13.7]}
12... Qa5+ {[%clk 0:02:57]} 13. Qd2 {[%clk 0:03:10]} 13... Qxd2+ {[%clk
0:02:57.9]} 14. Kxd2 {[%clk 0:03:11.9]} 14... O-O {[%clk 0:02:55.1]} 15. g3
{[%clk 0:02:35.6]} 15... Ne4+ {[%clk 0:02:43.1]} 16. Ke3 {[%clk 0:02:35.1]}
16... g5 {[%clk 0:02:34.8]} 17. Nh5 {[%clk 0:02:35.5]} 17... e5 {[%clk
0:02:03.7]} 18. dxe5 {[%clk 0:01:51.3]} 18... Bg4 {[%clk 0:01:38.3]} 19. Nxg5
{[%clk 0:01:09.5]} 19... Bxh5 {[%clk 0:01:26.2]} 20. Nxe4 {[%clk 0:01:05]} 20...
dxe4 {[%clk 0:01:27.7]} 21. Bc4+ {[%clk 0:01:06.1]} 21... Kg7 {[%clk 0:01:28.2]}
22. Kxe4 {[%clk 0:00:54.3]} 22... Bf3+ {[%clk 0:01:27.1]} 23. Ke3 {[%clk
0:00:53]} 23... Bxh1 {[%clk 0:01:29]} 24. Rxh1 {[%clk 0:00:50.6]} 24... Nxe5
{[%clk 0:01:30]} 0-1

[Event "*** Titled Tuesday Blitz"]
[Site "Chess.com"]
[Date "2019.12.03"]
[Round "5"]
[White "marcodobrikov"]
[Black "CzechmVIII"]
[Result "1-0"]
[WhiteElo "2352"]
[BlackElo "2129"]
[TimeControl "180+2"]
[EndTime "14:03:35 PST"]
[Termination "marcodobrikov won by resignation"]

1. e4 {[%clk 0:02:57.3]} 1... c5 {[%clk 0:03:00.7]} 2. b4 {[%clk 0:02:57]} 2...
cxb4 {[%clk 0:03:00.6]} 3. a3 {[%clk 0:02:57.9]} 3... e5 {[%clk 0:02:55.4]} 4.
axb4 {[%clk 0:02:58.3]} 4... Bxb4 {[%clk 0:02:55]} 5. c3 {[%clk 0:02:58.6]} 5...
Be7 {[%clk 0:02:51.3]} 6. Nf3 {[%clk 0:02:59.2]} 6... Nc6 {[%clk 0:02:49.7]} 7.
Bc4 {[%clk 0:02:54.7]} 7... Nf6 {[%clk 0:02:47.5]} 8. O-O {[%clk 0:02:51.7]}
8... O-O {[%clk 0:02:46.7]} 9. Re1 {[%clk 0:02:50.6]} 9... d5 {[%clk 0:02:39.8]}
10. exd5 {[%clk 0:02:51.3]} 10... Nxd5 {[%clk 0:02:40.9]} 11. Nxe5 {[%clk
0:02:49.6]} 11... Nxe5 {[%clk 0:02:35.5]} 12. Rxe5 {[%clk 0:02:50.4]} 12... Be6
{[%clk 0:02:30.6]} 13. Ba3 {[%clk 0:02:50.7]} 13... Qc7 {[%clk 0:02:07.2]} 14.
Qe2 {[%clk 0:02:32.5]} 14... Bxa3 {[%clk 0:01:21.5]} 15. Nxa3 {[%clk 0:02:32.9]}
15... Nf4 {[%clk 0:01:13.9]} 16. Qe4 {[%clk 0:02:33.1]} 16... Bxc4 {[%clk
0:01:10.3]} 17. Nxc4 {[%clk 0:02:26.4]} 17... Ne6 {[%clk 0:01:06.2]} 18. Ne3
{[%clk 0:02:23]} 18... Nc5 {[%clk 0:00:56]} 19. Qd5 {[%clk 0:02:16.7]} 19... b6
{[%clk 0:00:53.8]} 20. Rh5 {[%clk 0:02:12.8]} 20... g6 {[%clk 0:00:42]} 21. Rh3
{[%clk 0:02:12.9]} 21... Rad8 {[%clk 0:00:32.9]} 22. Qa2 {[%clk 0:02:11.3]}
22... Nd3 {[%clk 0:00:26.6]} 23. Nd5 {[%clk 0:02:08.7]} 23... Rxd5 {[%clk
0:00:16.5]} 24. Qxd5 {[%clk 0:02:08.7]} 24... Rd8 {[%clk 0:00:17.7]} 25. Rxa7
{[%clk 0:02:04.9]} 25... Qxa7 {[%clk 0:00:09.1]} 26. Qxd8+ {[%clk 0:02:04.9]}
26... Kg7 {[%clk 0:00:10.6]} 27. Qd4+ {[%clk 0:01:47.7]} 27... Kg8 {[%clk
0:00:10.7]} 28. Qxd3 {[%clk 0:01:47.4]} 28... Qa1+ {[%clk 0:00:08.1]} 29. Qf1
{[%clk 0:01:47.2]} 1-0

[Event "*** Titled Tuesday Blitz"]
[Site "Chess.com"]
[Date "2019.12.03"]
[Round "5"]
[White "r31415"]
[Black "pouya21"]
[Result "0-1"]
[WhiteElo "2471"]
[BlackElo "2735"]
[TimeControl "180+2"]
[EndTime "14:03:38 PST"]
[Termination "pouya21 won by checkmate"]

1. e4 {[%clk 0:02:53.9]} 1... c5 {[%clk 0:02:59.9]} 2. Nf3 {[%clk 0:02:54.6]}
2... d6 {[%clk 0:03:00.6]} 3. d4 {[%clk 0:02:56.1]} 3... cxd4 {[%clk 0:03:02.5]}
4. Nxd4 {[%clk 0:02:58]} 4... Nf6 {[%clk 0:03:04.1]} 5. Nc3 {[%clk 0:02:59.6]}
5... a6 {[%clk 0:03:05.1]} 6. h3 {[%clk 0:03:01]} 6... e5 {[%clk 0:03:02]} 7.
Nde2 {[%clk 0:03:01.2]} 7... b5 {[%clk 0:03:01.4]} 8. g4 {[%clk 0:03:01.7]} 8...
b4 {[%clk 0:03:02.7]} 9. Nd5 {[%clk 0:03:02]} 9... Nxd5 {[%clk 0:03:04.3]} 10.
exd5 {[%clk 0:03:00.1]} 10... h5 {[%clk 0:03:05.7]} 11. g5 {[%clk 0:02:52.2]}
11... h4 {[%clk 0:03:07]} 12. Bg2 {[%clk 0:02:42.8]} 12... Be7 {[%clk
0:03:07.2]} 13. Qd2 {[%clk 0:02:30.5]} 13... a5 {[%clk 0:03:08.2]} 14. f4 {[%clk
0:02:26.6]} 14... Nd7 {[%clk 0:03:06.7]} 15. a3 {[%clk 0:01:53.2]} 15... Ba6
{[%clk 0:02:57.1]} 16. axb4 {[%clk 0:01:46.6]} 16... axb4 {[%clk 0:02:59]} 17.
Qxb4 {[%clk 0:01:44]} 17... O-O {[%clk 0:02:58.6]} 18. c4 {[%clk 0:01:32.3]}
18... exf4 {[%clk 0:02:55.1]} 19. Bxf4 {[%clk 0:01:30.8]} 19... Nc5 {[%clk
0:02:56.4]} 20. Ra3 {[%clk 0:01:17.7]} 20... Bxg5 {[%clk 0:02:53.7]} 21. O-O
{[%clk 0:01:05.6]} 21... Re8 {[%clk 0:02:54.3]} 22. Nd4 {[%clk 0:01:05.6]} 22...
Bxf4 {[%clk 0:02:50]} 23. Rxf4 {[%clk 0:01:06.3]} 23... Qg5 {[%clk 0:02:51.7]}
24. Raf3 {[%clk 0:01:01.4]} 24... Nd3 {[%clk 0:02:52.6]} 25. Qxd6 {[%clk
0:00:58.6]} 25... Nxf4 {[%clk 0:02:43.9]} 26. Qxf4 {[%clk 0:00:54.6]} 26... Qxf4
{[%clk 0:02:44.5]} 27. Rxf4 {[%clk 0:00:56.5]} 27... Bxc4 {[%clk 0:02:46.1]} 28.
d6 {[%clk 0:00:36.5]} 28... Rad8 {[%clk 0:02:43.7]} 29. Nc6 {[%clk 0:00:36]}
29... Rxd6 {[%clk 0:02:40]} 30. Rxc4 {[%clk 0:00:36.9]} 30... Rd1+ {[%clk
0:02:41.1]} 31. Kh2 {[%clk 0:00:31.3]} 31... Re2 {[%clk 0:02:38.2]} 32. b4
{[%clk 0:00:25.7]} 32... Rdd2 {[%clk 0:02:39.5]} 33. Rg4 {[%clk 0:00:26.7]}
33... f5 {[%clk 0:02:40.4]} 34. Rg5 {[%clk 0:00:26.9]} 34... f4 {[%clk
0:02:41.9]} 35. Kh1 {[%clk 0:00:22.8]} 35... Re1+ {[%clk 0:02:40.8]} 36. Kh2
{[%clk 0:00:15.9]} 36... f3 {[%clk 0:02:42.3]} 37. b5 {[%clk 0:00:17.7]} 37...
Ree2 {[%clk 0:02:41]} 38. b6 {[%clk 0:00:17.8]} 38... Rxg2+ {[%clk 0:02:42.2]}
39. Rxg2 {[%clk 0:00:19]} 39... Rxg2+ {[%clk 0:02:44.1]} 40. Kh1 {[%clk
0:00:20.9]} 40... Rb2 {[%clk 0:02:45.6]} 41. Ne7+ {[%clk 0:00:18.6]} 41... Kf7
{[%clk 0:02:46.4]} 42. Nc8 {[%clk 0:00:20.5]} 42... Rb1+ {[%clk 0:02:47]} 43.
Kh2 {[%clk 0:00:21]} 43... f2 {[%clk 0:02:48.9]} 44. b7 {[%clk 0:00:21.2]} 44...
f1=Q {[%clk 0:02:48.8]} 45. Nd6+ {[%clk 0:00:22.4]} 45... Kg6 {[%clk 0:02:49.7]}
46. b8=Q {[%clk 0:00:23.2]} 46... Qf2# {[%clk 0:02:49.8]} 0-1

[Event "*** Titled Tuesday Blitz"]
[Site "Chess.com"]
[Date "2019.12.03"]
[Round "5"]
[White "nau64"]
[Black "ChessBitl"]
[Result "0-1"]
[WhiteElo "2236"]
[BlackElo "2379"]
[TimeControl "180+2"]
[EndTime "14:03:54 PST"]
[Termination "ChessBitl won by resignation"]

1. d4 {[%clk 0:03:01.9]} 1... d5 {[%clk 0:03:00.5]} 2. c4 {[%clk 0:03:02.4]}
2... dxc4 {[%clk 0:03:01.5]} 3. Nf3 {[%clk 0:03:03.4]} 3... Nf6 {[%clk 0:03:02]}
4. Nc3 {[%clk 0:03:04.4]} 4... a6 {[%clk 0:03:02.1]} 5. a4 {[%clk 0:03:05.1]}
5... Nc6 {[%clk 0:03:01.9]} 6. e3 {[%clk 0:03:06.1]} 6... Na5 {[%clk 0:03:01.5]}
7. Ne5 {[%clk 0:03:04]} 7... Be6 {[%clk 0:03:00.4]} 8. f4 {[%clk 0:03:03.5]}
8... g6 {[%clk 0:02:58.5]} 9. Be2 {[%clk 0:02:55.6]} 9... Bg7 {[%clk 0:02:58.5]}
10. O-O {[%clk 0:02:56.3]} 10... O-O {[%clk 0:03:00]} 11. g4 {[%clk 0:02:54.4]}
11... Nd5 {[%clk 0:02:50.5]} 12. f5 {[%clk 0:02:46.3]} 12... Nxc3 {[%clk
0:02:40.1]} 13. bxc3 {[%clk 0:02:43.7]} 13... Bd5 {[%clk 0:02:41.3]} 14. Qc2
{[%clk 0:02:21.5]} 14... Nb3 {[%clk 0:02:16.7]} 15. Rb1 {[%clk 0:02:19.9]} 15...
b5 {[%clk 0:02:08.4]} 16. e4 {[%clk 0:02:15.2]} 16... Bb7 {[%clk 0:02:08.1]} 17.
Bf4 {[%clk 0:02:03.6]} 17... Nxd4 {[%clk 0:01:57.4]} 18. cxd4 {[%clk 0:01:57.7]}
18... Qxd4+ {[%clk 0:01:58.7]} 19. Rf2 {[%clk 0:01:51.7]} 19... Bxe4 {[%clk
0:01:50.6]} 20. Qc1 {[%clk 0:01:08.4]} 20... Bxe5 {[%clk 0:01:48.5]} 21. Be3
{[%clk 0:01:05.2]} 21... Qd5 {[%clk 0:01:41.8]} 22. Ra1 {[%clk 0:00:38.2]} 22...
Kh8 {[%clk 0:01:34.7]} 23. Ra3 {[%clk 0:00:29.7]} 23... gxf5 {[%clk 0:01:29.7]}
24. axb5 {[%clk 0:00:24.2]} 24... axb5 {[%clk 0:01:25.7]} 25. Rxa8 {[%clk
0:00:22.7]} 25... Rxa8 {[%clk 0:01:27.2]} 26. Rf1 {[%clk 0:00:17.4]} 26... Bh1
{[%clk 0:01:10.6]} 0-1

[Event "*** Titled Tuesday Blitz"]
[Site "Chess.com"]
[Date "2019.12.03"]
[Round "5"]
[White "WeAintSurePal"]
[Black "xamax2000"]
[Result "0-1"]
[WhiteElo "2372"]
[BlackElo "2555"]
[TimeControl "180+2"]
[EndTime "14:04:05 PST"]
[Termination "xamax2000 won by resignation"]

1. Nf3 {[%clk 0:03:01.9]} 1... d5 {[%clk 0:02:59.1]} 2. c4 {[%clk 0:03:02.3]}
2... d4 {[%clk 0:02:59.8]} 3. e3 {[%clk 0:03:02.8]} 3... Nc6 {[%clk 0:03:00.5]}
4. exd4 {[%clk 0:02:50.3]} 4... Nxd4 {[%clk 0:03:02.4]} 5. Nxd4 {[%clk
0:02:47.3]} 5... Qxd4 {[%clk 0:03:04.3]} 6. Be2 {[%clk 0:02:48.4]} 6... Nh6
{[%clk 0:03:00.1]} 7. d3 {[%clk 0:02:48.8]} 7... g6 {[%clk 0:02:50.5]} 8. Nc3
{[%clk 0:02:50.1]} 8... c6 {[%clk 0:02:51.3]} 9. Be3 {[%clk 0:02:49.4]} 9... Qd8
{[%clk 0:02:52.3]} 10. O-O {[%clk 0:02:46.2]} 10... Nf5 {[%clk 0:02:53.2]} 11.
Bc5 {[%clk 0:02:43]} 11... Bg7 {[%clk 0:02:48]} 12. Bf3 {[%clk 0:02:39.9]} 12...
O-O {[%clk 0:02:48.7]} 13. Re1 {[%clk 0:02:41]} 13... Re8 {[%clk 0:02:49.6]} 14.
Rc1 {[%clk 0:02:34.6]} 14... e5 {[%clk 0:02:49.1]} 15. Ne4 {[%clk 0:02:32.6]}
15... b6 {[%clk 0:02:48.4]} 16. Ba3 {[%clk 0:02:32.2]} 16... Bb7 {[%clk
0:02:45.3]} 17. b4 {[%clk 0:02:25.8]} 17... a5 {[%clk 0:02:44.1]} 18. bxa5
{[%clk 0:02:14.9]} 18... Rxa5 {[%clk 0:02:37.2]} 19. Bb4 {[%clk 0:02:11.6]}
19... Rxa2 {[%clk 0:02:37.6]} 20. c5 {[%clk 0:02:10.6]} 20... bxc5 {[%clk
0:02:35.1]} 21. Nxc5 {[%clk 0:02:10.4]} 21... Ba8 {[%clk 0:02:35.8]} 22. Nb3
{[%clk 0:02:06.6]} 22... Qb6 {[%clk 0:02:28.9]} 23. Bc5 {[%clk 0:02:03.8]} 23...
Qb5 {[%clk 0:02:29.7]} 24. Be4 {[%clk 0:01:53.2]} 24... Ne7 {[%clk 0:02:18.3]}
25. Bxe7 {[%clk 0:01:43.6]} 25... Rxe7 {[%clk 0:02:20.2]} 26. Ra1 {[%clk
0:01:38.2]} 26... Rea7 {[%clk 0:02:15.5]} 27. Rxa2 {[%clk 0:01:38.6]} 27... Rxa2
{[%clk 0:02:17.4]} 28. d4 {[%clk 0:01:27.9]} 28... exd4 {[%clk 0:02:03.3]} 29.
Nxd4 {[%clk 0:01:14.6]} 29... Qb2 {[%clk 0:01:58.3]} 30. Ne2 {[%clk 0:00:56]}
30... Bf6 {[%clk 0:01:57.7]} 31. Bb1 {[%clk 0:00:47.8]} 31... Ra1 {[%clk
0:01:55.6]} 32. Ng3 {[%clk 0:00:48.1]} 32... Bd4 {[%clk 0:01:46.8]} 33. Re8+
{[%clk 0:00:20.1]} 33... Kg7 {[%clk 0:01:45.9]} 34. Re1 {[%clk 0:00:12.5]} 34...
Bxf2+ {[%clk 0:01:42.1]} 0-1

[Event "*** Titled Tuesday Blitz"]
[Site "Chess.com"]
[Date "2019.12.03"]
[Round "5"]
[White "SHIVACalypso"]
[Black "Fiona"]
[Result "1-0"]
[WhiteElo "2281"]
[BlackElo "2030"]
[TimeControl "180+2"]
[EndTime "14:04:09 PST"]
[Termination "SHIVACalypso won by checkmate"]

1. Nf3 {[%clk 0:03:01.9]} 1... d6 {[%clk 0:02:59.6]} 2. c4 {[%clk 0:03:02.1]}
2... e5 {[%clk 0:03:00.5]} 3. Nc3 {[%clk 0:02:58.8]} 3... f5 {[%clk 0:03:01.3]}
4. d3 {[%clk 0:02:59.6]} 4... Nf6 {[%clk 0:02:58.6]} 5. g3 {[%clk 0:03:01]} 5...
Be7 {[%clk 0:02:59.1]} 6. Bg2 {[%clk 0:03:02.5]} 6... c6 {[%clk 0:03:00.5]} 7.
O-O {[%clk 0:03:03.7]} 7... O-O {[%clk 0:03:02.1]} 8. Rb1 {[%clk 0:03:02.2]}
8... Qe8 {[%clk 0:02:59.4]} 9. b4 {[%clk 0:03:02]} 9... Qh5 {[%clk 0:02:40.9]}
10. Qb3 {[%clk 0:02:44.1]} 10... Kh8 {[%clk 0:02:40.6]} 11. c5 {[%clk 0:02:38]}
11... e4 {[%clk 0:02:29.4]} 12. dxe4 {[%clk 0:02:22.7]} 12... fxe4 {[%clk
0:02:23]} 13. cxd6 {[%clk 0:02:16.3]} 13... Bxd6 {[%clk 0:02:24.9]} 14. Ng5
{[%clk 0:02:07.8]} 14... Na6 {[%clk 0:02:05.8]} 15. Ncxe4 {[%clk 0:01:42.6]}
15... Bxb4 {[%clk 0:01:54]} 16. Nxf6 {[%clk 0:01:34.8]} 16... Rxf6 {[%clk
0:01:23.1]} 17. Bf3 {[%clk 0:01:32.1]} 17... Bg4 {[%clk 0:01:20.8]} 18. Bxg4
{[%clk 0:01:06.5]} 18... Qxg4 {[%clk 0:01:22.7]} 19. a3 {[%clk 0:01:08]} 19...
Bc5 {[%clk 0:01:16.3]} 20. Qd3 {[%clk 0:00:36.8]} 20... Qh5 {[%clk 0:00:57.7]}
21. Rxb7 {[%clk 0:00:31.4]} 21... Raf8 {[%clk 0:00:56.7]} 22. Be3 {[%clk
0:00:21.5]} 22... h6 {[%clk 0:00:50.4]} 23. Bxc5 {[%clk 0:00:06.8]} 23... Nxc5
{[%clk 0:00:52.3]} 24. Qh7# {[%clk 0:00:05]} 1-0

[Event "*** Titled Tuesday Blitz"]
[Site "Chess.com"]
[Date "2019.12.03"]
[Round "5"]
[White "Jbd735"]
[Black "ChessWarrior7197"]
[Result "0-1"]
[WhiteElo "2424"]
[BlackElo "2909"]
[TimeControl "180+2"]
[EndTime "14:04:11 PST"]
[Termination "ChessWarrior7197 won by resignation"]

1. d4 {[%clk 0:03:01.9]} 1... Nf6 {[%clk 0:02:41.7]} 2. Nf3 {[%clk 0:03:01.5]}
2... d5 {[%clk 0:02:41.6]} 3. c3 {[%clk 0:03:00.1]} 3... Bf5 {[%clk 0:02:39.3]}
4. e3 {[%clk 0:02:58.2]} 4... c5 {[%clk 0:02:39.2]} 5. dxc5 {[%clk 0:02:48.7]}
5... a5 {[%clk 0:02:38.3]} 6. Ne5 {[%clk 0:02:32.7]} 6... Qc7 {[%clk 0:02:34.7]}
7. Bb5+ {[%clk 0:02:30.8]} 7... Nc6 {[%clk 0:02:31]} 8. Qa4 {[%clk 0:02:24.9]}
8... Rc8 {[%clk 0:02:30.7]} 9. f4 {[%clk 0:02:01]} 9... Nd7 {[%clk 0:02:28.6]}
10. Nxd7 {[%clk 0:01:58]} 10... Bxd7 {[%clk 0:02:28.3]} 11. b4 {[%clk 0:01:50]}
11... e5 {[%clk 0:02:29.1]} 12. O-O {[%clk 0:01:46.9]} 12... Be7 {[%clk
0:02:25.5]} 13. Nd2 {[%clk 0:01:41.7]} 13... O-O {[%clk 0:02:26.2]} 14. Nf3
{[%clk 0:01:40.1]} 14... exf4 {[%clk 0:02:25.7]} 15. exf4 {[%clk 0:01:42]} 15...
Bf6 {[%clk 0:02:27.3]} 16. Bxc6 {[%clk 0:00:36.9]} 16... Bxc6 {[%clk 0:02:24.2]}
17. Qxa5 {[%clk 0:00:28.7]} 17... Qxa5 {[%clk 0:02:23.9]} 18. bxa5 {[%clk
0:00:29.9]} 18... Bxc3 {[%clk 0:02:24]} 19. Rb1 {[%clk 0:00:29.4]} 19... Ra8
{[%clk 0:02:20.6]} 20. Bb2 {[%clk 0:00:25.9]} 20... Bxb2 {[%clk 0:02:21.3]} 21.
Rxb2 {[%clk 0:00:26.6]} 21... Rxa5 {[%clk 0:02:23.2]} 22. Rc1 {[%clk 0:00:24.1]}
22... Rfa8 {[%clk 0:02:23.4]} 23. Rcc2 {[%clk 0:00:21.9]} 23... Ra4 {[%clk
0:02:22.5]} 24. g3 {[%clk 0:00:21.8]} 24... f6 {[%clk 0:02:24]} 25. Kf2 {[%clk
0:00:22.1]} 25... R8a5 {[%clk 0:02:24.1]} 26. Ke3 {[%clk 0:00:22.1]} 26... Re4+
{[%clk 0:02:21.7]} 27. Kd2 {[%clk 0:00:20.7]} 27... Kf7 {[%clk 0:02:22.9]} 28.
Rc3 {[%clk 0:00:17.6]} 28... Rea4 {[%clk 0:02:23.5]} 29. Rcc2 {[%clk 0:00:16.6]}
29... d4 {[%clk 0:02:24.5]} 30. Ne1 {[%clk 0:00:17.4]} 30... Be4 {[%clk
0:02:25.2]} 31. Nd3 {[%clk 0:00:17.5]} 31... Ra3 {[%clk 0:02:25.9]} 32. Rb3
{[%clk 0:00:16.9]} 32... Rxa2 {[%clk 0:02:27.4]} 33. Rxa2 {[%clk 0:00:15.1]}
33... Rxa2+ {[%clk 0:02:29.3]} 34. Ke1 {[%clk 0:00:15.5]} 34... Rxh2 {[%clk
0:02:30.1]} 35. Nf2 {[%clk 0:00:14.9]} 35... Bc6 {[%clk 0:02:28.5]} 36. Rd3
{[%clk 0:00:14.8]} 36... Rg2 {[%clk 0:02:29]} 37. g4 {[%clk 0:00:13.8]} 37...
Rg1+ {[%clk 0:02:27.8]} 38. Kd2 {[%clk 0:00:13.2]} 38... Rf1 {[%clk 0:02:27.6]}
39. Ke2 {[%clk 0:00:12.9]} 39... Rc1 {[%clk 0:02:28.9]} 40. Kd2 {[%clk
0:00:12.6]} 40... Rxc5 {[%clk 0:02:30.8]} 41. Rxd4 {[%clk 0:00:13.7]} 41... Rd5
{[%clk 0:02:30.9]} 42. Ke3 {[%clk 0:00:13.1]} 42... Rxd4 {[%clk 0:02:31.6]} 43.
Kxd4 {[%clk 0:00:15]} 43... g6 {[%clk 0:02:31.6]} 44. Nd3 {[%clk 0:00:13.4]}
44... h5 {[%clk 0:02:32.1]} 45. g5 {[%clk 0:00:11.4]} 45... fxg5 {[%clk
0:02:33.5]} 46. fxg5 {[%clk 0:00:12.9]} 46... Ke6 {[%clk 0:02:35.4]} 0-1

[Event "*** Titled Tuesday Blitz"]
[Site "Chess.com"]
[Date "2019.12.03"]
[Round "5"]
[White "politeplayer"]
[Black "SONOFHOLYGOD"]
[Result "0-1"]
[WhiteElo "2233"]
[BlackElo "2519"]
[TimeControl "180+2"]
[EndTime "14:04:19 PST"]
[Termination "SONOFHOLYGOD won by resignation"]

1. e4 {[%clk 0:03:01.9]} 1... c5 {[%clk 0:03:00.8]} 2. d4 {[%clk 0:03:03]} 2...
cxd4 {[%clk 0:03:01.6]} 3. c3 {[%clk 0:03:04.4]} 3... dxc3 {[%clk 0:03:03]} 4.
Nxc3 {[%clk 0:03:04.7]} 4... a6 {[%clk 0:03:03.7]} 5. Nf3 {[%clk 0:03:04.9]}
5... e6 {[%clk 0:03:05]} 6. Bc4 {[%clk 0:03:04.7]} 6... d6 {[%clk 0:03:06.2]} 7.
O-O {[%clk 0:03:05.1]} 7... Be7 {[%clk 0:03:07.7]} 8. Qe2 {[%clk 0:03:06]} 8...
Nd7 {[%clk 0:03:07.6]} 9. Rd1 {[%clk 0:03:05.8]} 9... Qa5 {[%clk 0:03:07.1]} 10.
Bd2 {[%clk 0:02:46.7]} 10... Qh5 {[%clk 0:03:05.9]} 11. Rac1 {[%clk 0:02:45.7]}
11... Ngf6 {[%clk 0:03:05.4]} 12. h3 {[%clk 0:02:28.6]} 12... O-O {[%clk
0:03:04]} 13. Bf4 {[%clk 0:02:24.5]} 13... e5 {[%clk 0:02:59]} 14. Bg3 {[%clk
0:02:07.8]} 14... Nc5 {[%clk 0:02:59]} 15. b4 {[%clk 0:02:03]} 15... Ne6 {[%clk
0:02:59.6]} 16. Nd5 {[%clk 0:01:50.3]} 16... Nxd5 {[%clk 0:03:00.4]} 17. exd5
{[%clk 0:01:28.7]} 17... Ng5 {[%clk 0:02:58.5]} 18. Nxe5 {[%clk 0:01:16.7]}
18... Qxe2 {[%clk 0:02:55.3]} 19. Bxe2 {[%clk 0:01:16.2]} 19... dxe5 {[%clk
0:02:56.4]} 20. d6 {[%clk 0:01:17.6]} 20... Bf6 {[%clk 0:02:22]} 21. d7 {[%clk
0:01:18.6]} 21... Ne4 {[%clk 0:02:22]} 22. dxc8=Q {[%clk 0:00:42.7]} 22... Raxc8
{[%clk 0:02:22.2]} 23. Bf3 {[%clk 0:00:35.7]} 23... Nxg3 {[%clk 0:02:14.7]} 24.
fxg3 {[%clk 0:00:30.3]} 24... Rxc1 {[%clk 0:02:07.6]} 25. Rxc1 {[%clk
0:00:29.2]} 25... b6 {[%clk 0:02:03.3]} 26. Rc7 {[%clk 0:00:20.8]} 26... a5
{[%clk 0:02:00.4]} 27. bxa5 {[%clk 0:00:18.6]} 27... bxa5 {[%clk 0:02:02.3]} 28.
Ra7 {[%clk 0:00:19.4]} 28... e4 {[%clk 0:02:03.3]} 29. Rxa5 {[%clk 0:00:14.1]}
29... Bd4+ {[%clk 0:01:58.8]} 30. Kf1 {[%clk 0:00:09]} 30... exf3 {[%clk
0:02:00.7]} 31. gxf3 {[%clk 0:00:10.1]} 31... Rb8 {[%clk 0:01:58.7]} 32. Ke2
{[%clk 0:00:09.8]} 32... g6 {[%clk 0:01:59.4]} 33. Kd3 {[%clk 0:00:10.8]} 33...
Bf2 {[%clk 0:01:59.2]} 34. g4 {[%clk 0:00:10.9]} 34... Re8 {[%clk 0:01:58.3]}
35. a4 {[%clk 0:00:07.1]} 35... Re3+ {[%clk 0:01:59.6]} 36. Kc4 {[%clk
0:00:08.2]} 36... Rxf3 {[%clk 0:02:00.9]} 37. Ra8+ {[%clk 0:00:08.5]} 37... Kg7
{[%clk 0:02:01.8]} 38. a5 {[%clk 0:00:09.8]} 38... Rxh3 {[%clk 0:02:03.2]} 39.
a6 {[%clk 0:00:10.9]} 39... Rh4 {[%clk 0:02:04.8]} 40. Kd5 {[%clk 0:00:10.2]}
40... Rxg4 {[%clk 0:02:05.9]} 41. Rc8 {[%clk 0:00:07.4]} 41... Ra4 {[%clk
0:02:05.9]} 0-1